Cogmind - Beta 17.1 @@@ ROGUE MODE // 2026.09.07 @ 08:20:45 Player: Zetadar Result: Destroyed by S-10 Pest with Light Assault Rifle Performance ------------- Evolutions (1) 500 Regions Visited (2) 400 Robots Destroyed (3) 15 Value Destroyed (104) 104 Prototype IDs (1) 20 Alien Tech Used (0) 0 Bonus (200) 200 TOTAL SCORE: 1239 Bonus ------- Pacifist 200 Cogmind --------- Core Integrity 0/400 Matter 275/300 Energy 100/100 System Corruption 0% Temperature Cool (6) Movement Core (50) Location -9/Materials Parts ------- > --- POWER (1) -------- (None) > --- PROPULSION (4) --- (None) > --- UTILITY (2) ------ (None) > --- WEAPON (2) ------- (None) > --- INVENTORY (5) ---- High-capacity Storage Unit Hardlight Generator Hardlight Generator Heavy Assault Rifle Heavy Assault Rifle Peak State ------------ > --- POWER ------------ Ion Engine > --- PROPULSION ------- Airjet Airjet Airjet Improved Flight Unit > --- UTILITY ---------- High-capacity Storage Unit Structural Scanner > --- WEAPON ----------- Heavy Assault Rifle Heavy Assault Rifle > --- INVENTORY -------- Ion Engine Aluminum Leg Aluminum Leg Airjet Improved Flight Unit High-capacity Storage Unit Hardlight Generator Hardlight Generator Shock Bomb Launcher Shock Bomb Launcher [Rating: 21] Favorites ----------- Power Ion Engine Engine Ion Engine Propulsion Aluminum Leg Leg Aluminum Leg Hover Unit Airjet Flight Unit Improved Flight Unit Utility Small Storage Unit Device Structural Scanner Storage Small Storage Unit Weapon Heavy Assault Rifle Ballistic Gun Heavy Assault Rifle Launcher Shock Bomb Launcher Build | -11 -10 -9 ------- Run | Yrd Mat Mat Slots Evolved 2 | . . 2 Power . | . . . Propulsion 2 | . . 2 Utility . | . . . Weapon . | . . . Parts Attached 18 | 4 2 12 Power 2 | 1 . 1 Engine 2 | 1 . 1 Core . | . . . Reactor . | . . . Propulsion 8 | 2 . 6 Treads . | . . . Leg 2 | 2 . . Wheel . | . . . Hover 4 | . . 4 Flight 2 | . . 2 Utility 3 | 1 1 1 Device 1 | . 1 . Storage 2 | 1 . 1 Processor . | . . . Hackware . | . . . Protection . | . . . Artifact . | . . . Weapon 5 | . 1 4 Energy Gun . | . . . Energy Cannon . | . . . Ballistic Gun 3 | . 1 2 Ballistic Cannon . | . . . Launcher 2 | . . 2 Special Weapon . | . . . Impact Weapon . | . . . Slashing Weapon . | . . . Piercing Weapon . | . . . Special Melee Weapon . | . . . Unidentified Prototypes 1 | . . 1 Parts Lost 8 | . . 8 Power 2 | . . 2 Propulsion 4 | . . 4 Utility . | . . . Weapon 2 | . . 2 Highest Loss Streak 8 | . . 8 To Critical Strikes . | . . . Average Backups 4 | 1 2 7 Power . | . 1 . Propulsion . | . . 1 Utility . | . . 2 Weapon 1 | . 1 2 Tool/Special . | . . . Unused Backups 5 | . . 5 Power . | . . . Propulsion . | . . . Utility 3 | . . 3 Weapon 2 | . . 2 Tool/Special . | . . . Average Slot Usage (%) 83 | . 84 82 Engine 11 | . 14 8 Leg 17 | . 28 5 Hover 14 | . . 30 Device 9 | . 13 5 Storage 12 | . 14 10 Ballistic Gun 16 | . 14 19 Peak Build Rating 21 | 4 6 21 Average Rating 10 | 3 5 15 On Entrance 3 | . 4 6 Avg Prop Armor Cover (%) . | . . . Naked Turns 7 | . . 7 Heaviest Build 57 | 10 12 57 Greatest Support 32 | 20 20 32 Greatest Overweight (x) 7 | . . 7 Average Overweight (x) . | . . . Largest Inventory Capacity 20 | 8 8 20 Average Capacity 11 | 7 8 15 Most Carried 10 | 3 3 10 Average Carried 4 | 1 2 7 Final Capacity 8 | 8 8 5 Final Carried 5 | 2 3 5 Class Distribution -------------------- 100% | Mutant Dominant Class ---------------- Mutant | -10/Materials Mutant | -9/Materials Resources | -11 -10 -9 ----------- Run | Yrd Mat Mat Matter Collected 459 | 226 34 199 Remotely . | . . . Salvage Created 133 | . . 133 Parts 8 | . . 8 Haulers Intercepted . | . . . Recyclers Shooed . | . . . Parts Field Recycled . | . . . Retrieved Matter . | . . . Parts Self-Destructed . | . . . Prevented . | . . . Parts Restored . | . . . Kills | -11 -10 -9 ------- Run | Yrd Mat Mat Combat Hostiles Destroyed 3 | . . 3 Guns 3 | . . 3 Classes Destroyed 2 | . . 2 Grunt 2 | . . 2 Brawler 1 | . . 1 Best Kill Streak 2 | . . 2 Combat Bots Only 2 | . . 2 Max Kills in Single Turn 1 | . . 1 Gunslinging . | . . . Exploded . | . . . Melee . | . . . Uniques/NPCs Destroyed . | . . . Combat | -11 -10 -9 -------- Run | Yrd Mat Mat Hostile Shots Fired 155 | . . 155 Missed 49 | . . 49 Hits 106 | . . 106 Melee 1 | . . 1 Projectile 105 | . . 105 Critical Strikes 3 | . . 3 Damage Taken 1180 | . . 1180 Core 402 | . . 402 Absorbed by Shields . | . . . Core Remaining (%) 100 | 100 100 . Volleys Fired 24 | . 9 15 Largest 2 | . 1 2 Hottest 46 | . 20 46 Shots Fired 39 | . 9 30 Gun 39 | . 9 30 Cannon . | . . . Launcher . | . . . Special . | . . . Kinetic 39 | . 9 30 Thermal . | . . . Explosive . | . . . Electromagnetic . | . . . Robot Hit Streak 4 | . 4 4 Robot Miss Streak 3 | . 3 3 Penetration Max . | . . . Secondary Targets 2 | . . 2 Max Gunslinging Chain 1 | . . 1 Shots Hit Robots 22 | . 5 17 Core Hits 7 | . 2 5 Critical Kills . | . . . Critical Parts Destroyed . | . . . Critical Strikes . | . . . Melee Attacks . | . . . Impact . | . . . Slashing . | . . . Piercing . | . . . Sneak Attacks . | . . . Combat Hostiles . | . . . Follow-up Attacks . | . . . Damage Inflicted 289 | . 42 247 Guns 289 | . 42 247 Cannons . | . . . Explosions . | . . . Melee . | . . . Ramming . | . . . Kinetic 289 | . 42 247 Thermal . | . . . Explosive . | . . . Electromagnetic . | . . . Impact . | . . . Slashing . | . . . Piercing . | . . . Highest Corruption 1 | . 1 . Average Corruption 1 | . 1 . Corruption Purged . | . . . Corruption Blocked . | . . . Effects 2 | . 2 . Message Errors 2 | . 2 . Overload Shots . | . . . Overflow Damage . | . . . Projectiles . | . . . Explosions . | . . . Melee . | . . . Knockbacks . | . . . Impact . | . . . Kinetic . | . . . Secondary . | . . . Self-Inflicted Damage . | . . . Shots . | . . . Rammed . | . . . Targets Rammed . | . . . Kicked . | . . . Crushed . | . . . Highest Temperature 413 | . . 413 Average Temperature 105 | . . 105 Received Heat Transfer 480 | . . 480 Effects 2 | . . 2 Energy Bleed 1 | . . 1 Short Circuit 1 | . . 1 Siege Activations . | . . . Martial Activations . | . . . Shielding Activations . | . . . Robots Disrupted . | . . . Combat Hostiles . | . . . Robots Corrupted . | . . . Combat Hostiles . | . . . Parts Fried . | . . . Impact Corruptions . | . . . Robots Melted . | . . . Combat Hostiles . | . . . Parts Melted . | . . . Heat Transferred . | . . . Parts Sabotaged . | . . . Parts Stolen . | . . . Parts Stripped . | . . . Power Chain Reactions . | . . . Alert | -11 -10 -9 ------- Run | Yrd Mat Mat Maximum Alert Level . | . . . Low Security (%) 100 | 100 100 100 Level 1 . | . . . Level 2 . | . . . Level 3 . | . . . Level 4 . | . . . Level 5 . | . . . High Security . | . . . Max Security . | . . . Peak Influence 65 | . . 65 Initial . | . . . Average 5 | . . 11 Influence Increases 110 | . . 110 Destroy 0b10 Robot/C 60 | . . 60 Destroy Leader 20 | . . 20 Lose Combat Pursuer 30 | . . 30 Influence Decreases 110 | . . 110 Time Decay 60 | . . 60 Lost Part 50 | . . 50 Squads Dispatched 4 | . 2 2 Investigation . | . . . Extermination . | . . . Reinforcement 4 | . 2 2 Assault . | . . . Garrison . | . . . Intercept . | . . . Searches Triggered . | . . . Construction Impeded . | . . . Haulers Reinforced . | . . . Active Scanning Responses . | . . . Cargo Convoy Interrupts . | . . . Stealth | -11 -10 -9 --------- Run | Yrd Mat Mat Distress Signals . | . . . Communications Jammed . | . . . Distress Signals . | . . . Times Spotted 22 | . 5 17 Peak Tracking Total 10 | . 2 10 Tactical Retreats 2 | . . 2 Traps | -11 -10 -9 ------- Run | Yrd Mat Mat Traps Triggered 1 | . 1 . Indirectly . | . . . Trap Hack Attempts . | . . . Triggered . | . . . Disarmed . | . . . Reprogrammed . | . . . Reused . | . . . Traps Extracted . | . . . Installed . | . . . Triggered . | . . . Machines | -11 -10 -9 ---------- Run | Yrd Mat Mat Machines Disabled . | . . . Max in Single Turn . | . . . Machines Repaired . | . . . Machines Dismantled . | . . . Machines Sabotaged . | . . . Overloaded Fab Kills . | . . . Hacking | -11 -10 -9 --------- Run | Yrd Mat Mat Machines Accessed . | . . . Terminals . | . . . Fabricators . | . . . Repair Stations . | . . . Recycling Units . | . . . Scanalyzers . | . . . Garrison Access . | . . . Total Hacks . | . . . Successful . | . . . Failed . | . . . Catastrophic . | . . . Database Lockouts . | . . . Manual . | . . . Terminals . | . . . Fabricators . | . . . Repair Stations . | . . . Recycling Units . | . . . Scanalyzers . | . . . Garrison Access . | . . . Terminal Hacks . | . . . Fabricator Hacks . | . . . Repair Station Hacks . | . . . Recycling Unit Hacks . | . . . Scanalyzer . | . . . Garrison Access Hacks . | . . . Unauthorized Hacks . | . . . Terminals . | . . . Fabricators . | . . . Repair Stations . | . . . Recycling Units . | . . . Scanalyzers . | . . . Garrison Access . | . . . Data Cores Recovered . | . . . Used . | . . . Hacking Detections . | . . . Full Trace Events . | . . . Feedback Events . | . . . Feedback Blocked . | . . . Robot Schematics Acquired . | . . . Robots Built . | . . . Authchips . | . . . Time . | . . . Total Robot Build Rating . | . . . Part Schematics Acquired . | . . . Parts Built . | . . . Authchips . | . . . Time . | . . . Total Part Build Rating . | . . . Part Studies Acquired . | . . . Parts Repaired . | . . . Time . | . . . Parts Recycled . | . . . Recycled Matter . | . . . Retrieved Matter . | . . . Retrieved Components . | . . . Parts Scanalyzed . | . . . Part Schematics Acquired . | . . . Parts Damaged . | . . . Bothacking | -11 -10 -9 ------------ Run | Yrd Mat Mat Used RIF Installer . | . . . Robots Hacked . | . . . Non-combat . | . . . Combat . | . . . Robot Hacks Applied . | . . . Relay Couplers Released . | . . . Fabnet Peak Effective % . | . . . Robots Rewired . | . . . Allies Hacked . | . . . Hacks Repelled . | . . . Allies | -11 -10 -9 -------- Run | Yrd Mat Mat Total Allies . | . . . Largest Group . | . . . Highest-Rated Group . | . . . Highest-Rated Ally . | . . . Total Orders . | . . . Ally Attacks . | . . . Total Damage . | . . . Kills . | . . . Allies Corrupted . | . . . Allies Melted . | . . . Intel | -11 -10 -9 ------- Run | Yrd Mat Mat Active Infowar (turns) 500 | . 348 152 Structural 500 | . 348 152 Robot Analysis Total . | . . . Derelict Logs Recovered . | . . . Drone Launches . | . . . Drone Recoveries . | . . . Exploration | -11 -10 -9 ------------- Run | Yrd Mat Mat Turns Passed 755 | 61 365 329 Spaces Moved 569 | 45 284 240 Core 3 | 3 . . Treads . | . . . Legs 367 | 42 284 41 Wheels . | . . . Hover 199 | . . 199 Flight . | . . . Fastest Speed 48 | 50 120 48 Average Speed 109 | 115 120 95 Slowest Speed 480 | 120 120 480 Overloaded Moves . | . . . Propulsion Burnouts . | . . . Robots Hopped . | . . . Potential Cave-ins . | . . . Cave-ins Triggered . | . . . Exploration Rate (%) 30 | 3 63 26 Regions Visited 2 Branch Regions . Pre-discovered Areas . | . . . Known Exits Taken . | . . . Unknown Exits Taken 2 | 1 1 . Scrap Searched . | . . . Spaces Dug . | . . . Terrain Destroyed . | . . . Melee . | . . . Projectile . | . . . AOE . | . . . Terrain Rammed . | . . . Walls Destroyed . | . . . Machines Disabled . | . . . Actions | -11 -10 -9 --------- Run | Yrd Mat Mat Total 667 | 54 301 312 Wait 23 | . 4 19 Move 567 | 44 283 240 Hop . | . . . Pick Up 22 | 6 3 13 Fast Attach . | . . . Attach 12 | 4 2 6 Detach . | . . . Swap 9 | . . 9 Drop 10 | . . 10 Fire 24 | . 9 15 Melee . | . . . Ram . | . . . Kick . | . . . Crush . | . . . Escape Stasis . | . . . Rewire . | . . . Trap . | . . . Miscellaneous . | . . . Route ------- -11/Scrapyard -10/Materials (discovered 2 exits: [*Mat] / [Sub]) -9/Materials History --------- Turn | Location | Event 12 | -11/Scrapyard | Discovered new exit (range 15) 62 | -11/Scrapyard | Entered Materials 155 | -10/Materials | Discovered new exit (range 7) 309 | -10/Materials | Build established: Mutant 366 | -10/Materials | Discovered new exit (range 15) 427 | -10/Materials | Entered another Materials area 427 | -9/Materials | Evolved 2 slots: Propulsion x2 750 | -9/Materials | Core integrity fell below 50% 754 | -9/Materials | Core integrity fell below 20% 756 | -9/Materials | Destroyed by S-10 Pest with Light Assault Rifle Last Messages --------------- G-34 Mercenary destroyed. Switching to secondary target: G-34 Mercenary. Acquired 6 matter. O-16 Technician: "IFF HANDSHAKE FAILED. SECURING TERMINAL." Critical hit (Burn: +37). Acquired 6 matter. Ion Engine destroyed. Critical hit (Burn: +37). Acquired 6 matter. ALERT: Hostiles spotted, dispatching reinforcements to Terminal M006. Airjet destroyed. K-01 Serf collects debris. Airjet destroyed. Ion Engine destroyed. S-10 Pest destroyed. Shock Bomb Launcher destroyed. Dropped Hcp. Storage Unit. Dropped Aluminum Leg. G-47 Trooper destroyed. K-01 Serf collects debris. Map ----- +----------------------------------------------------+ | ?????????????????????????????????????????????????? | | ?????????????????????????????????????????????????? | | ?????????????????????????????????????????????????? | | ?????????????????????????????????????????????????? | | ?????????????????????????????????????????????????? | | ?????????????????????????????????????????????????? | | ?????????????????????????????????????????????????? | | ?????????????????????????????????????????????????? | | ?????????????????????????????????????????????????? | | ?????????????????????????????????????????????????? | | ?????????????????????????????????????????????????? | | ?????????????????????????????????????????????????? | | ?????????????????????????????????????????????????? | | ?????????????????????????????????????????????????? | | ?????????????????????????????????????????????????? | | ?????????????????????????????????????????????????? | | ?????????????????????????????????????????????????? | | ?????????????????????????????????????????????????? | | ???????????????????????########????????? ???????? | | ???????????????????????# #????????? ???????? | | ???????????????????????# #????????? ???????? | | ???????????????????????+ """ #????????? ???????? | | ???????????????????????#s""" #????????? ???????? | | ???????????????????????# """ #??????###/###?????? | | ???????????????????????# =s #??????# ###+#?? | | ??????????? ##/#########@############ ??? | | ?????????? =gsg ???? | | ?????????? *[= ????? | | ?????????? t Y[ #?????? | | ??????????? "############k ########### #??????? | | ????????????????# # g# # #??????? | | ????????????????# + u # # #??????? | | ????????????????# # + / #??????? | | ????????????????######### # # #??????? | | ????????????????????????# # # ######## | | ????????????????????????# # # # "" | | ????????????????????????# + # # """ "T | | ????????????????????????# # # # """ | | ???????????????????????? ########### *#[""" | | ???????????????????????###+##?######### %+= % | | ?????????????????????????? ??? # =#! / | | ?????????????????????????? ?"" + # / | | ????????????????????????????T" # # | | ?????????????????????????????? # #####+## | | ?????????????????????????????? # ##?## ## | | ?????????????????????????????? # ##### ## | | ??????????? ?????????????? # ##### ## | | ???????????## ?????????????? # ^ # | | ???????????## ?????????????? # + | | ???????????## ??????????????## # | +----------------------------------------------------+ Best States ------------- Heat Dissipation 28 Energy Generation 10 Energy Capacity 250 Matter Stores 300 Matter Capacity 300 Sight Range 16 Terrain Scan Density 10 Evasion (%) 55 Item Schematics ----------------- None Robot Schematics ------------------ None Fabricated ------------ Nothing Repaired ---------- Nothing Studied --------- None Alien Tech Used ----------------- None Achievements -------------- None Challenges ------------ None Game ------ Seed ActuatorCoolantWarhead Manual? 0 Play Time 00:11:11 Cumulative 8.1 hours Start 2026.09.07 @ 08:09:36 End 2026.09.07 @ 08:20:45 Sessions 1 Manual Loads 0 Difficulty Rogue Special Mode None Game No. 15 Rogue 15 Adventurer 0 Explorer 0 Win Type - Total 0 Types 0/0/0/0/0/0/0/0/0/0 Lore% 4 Gallery% 10 Achievement% 10 Wizard Run 0 Options --------- Layout 0 ASCII 0 Keyboard 0 Movement Mouse Keybinds 0 Fullscreen 2 Font 18/SmallcapsGlow Map View 76x50 Zoom Use 0% Tactical HUD 0 Map Filters NONE Filters NONE Steam 1 RUN: e8822442-b95d-4889-8bdd-dc11a0ba21b8